{"text_format":"1","workbook":"xlsx","n_sheets":8,"sheets":["Indicaciones Generales","Información General","Contenidos mínimos","Semana 1","Semana 2","Semana 3","Semana 4","Tabla de actualización"],"not_rendered":{"charts":0,"images":3,"macros":1,"external_links":0,"defined_names":4,"comments":2,"pivot_tables":0},"unopened":[],"bounds":{"document_bytes":16777216,"sheet_cells":100000,"rows_first":2000,"rows_last":500,"rows_between":2000,"halvings":0,"cell_chars":16384,"cell_head_chars":4096},"cells_cut":0,"cells_raw":0,"read":"whole","date_system":"1900"}

{"sheet":"Indicaciones Generales","index":0,"n_rows":3,"n_cols":1,"rows_kept":3,"cut":false,"hidden":false,"merged":[]}
[]
["Importante"]
["Estimado Docente las matrices que se encuentran en las siguientes pestañas, corresponden al sílabo, programa analítico y registro díario del módulo que usted acertadamente dictará en el programa de maestría.\n\nSolicitamos se consideren que en las Unidades que usted plantee se consideren los contenidos mínimos detallados.\n\nCabe indicar que hay información que se encuentra enlazada. \n\nSe ha resaltado con el color amarillo las ventanas en las cuales se debe actualizar la información, por favor retire el color una vez que ha colocado la información solicitada.\n\nLos documentos deben imprimirse y remitirse a la secretaría en físico y debidamente legalizadas."]

{"sheet":"Información General","index":1,"n_rows":83,"n_cols":35,"rows_kept":83,"cut":false,"hidden":false,"merged":[[66,34,69,41],[27,0,27,1],[28,0,28,6],[29,6,30,6],[22,3,22,4],[22,5,22,6],[23,2,23,6],[24,2,24,6],[59,4,59,6],[65,4,65,5],[68,4,68,5],[69,4,69,5],[59,34,59,41],[60,34,61,41],[62,34,65,41],[60,4,60,5],[61,4,61,5],[29,0,29,3],[29,7,41,9],[42,7,46,7],[58,0,58,6],[27,2,27,6],[58,7,63,9],[63,4,63,5],[20,0,20,1],[21,0,21,1],[11,0,11,2],[12,0,12,2],[8,3,8,6],[9,3,9,6],[24,0,24,1],[0,0,5,0],[0,1,0,5],[1,1,1,5],[2,1,2,5],[10,0,10,2],[10,3,10,6],[11,3,11,6],[12,3,12,6],[4,1,4,5],[0,6,4,6],[3,1,3,5],[18,0,18,1],[19,0,19,1],[82,0,82,1],[80,5,80,6],[79,5,79,6],[81,5,81,6],[82,5,82,6],[82,2,82,3],[81,2,81,3],[81,0,81,1],[76,0,76,1],[77,0,77,1],[78,0,78,6],[76,2,76,6],[77,2,77,6],[75,0,75,6],[80,2,80,3],[79,0,79,1],[13,3,13,6],[14,3,14,6],[57,0,57,3],[56,0,56,3],[22,0,22,1],[23,0,23,1],[67,4,67,5],[80,0,80,1],[79,2,79,3],[71,0,71,1],[71,3,71,6],[72,3,72,6],[73,3,73,6],[74,3,74,6],[70,0,70,6],[74,0,74,1],[72,0,72,1],[73,0,73,1],[15,3,15,6],[16,3,16,6],[62,4,62,5],[5,1,5,5],[25,2,25,6],[26,2,26,6],[64,4,64,5],[66,4,66,5],[59,0,59,1],[59,2,59,3],[6,0,6,6],[17,0,17,6],[20,3,20,4],[21,3,21,4],[20,5,20,6],[21,5,21,6],[18,2,18,6],[19,2,19,6],[13,0,13,2],[14,0,14,2],[15,0,15,2],[16,0,16,2],[7,0,7,6],[25,0,25,1],[26,0,26,1],[8,0,8,2],[9,0,9,2]]}
[null,"UNIVERSIDAD POLITÉCNICA ESTATAL DEL CARCHI"]
[null,"CENTRO DE POSTGRADO"]
[null,"MODALIDAD EN LINEA"]
[null,"PLANIFICACIÓN MICRO CURRICULAR"]
[null,"SÍLABO"]
[null,"INFORMACIÓN GENERAL DEL MÓDULO",null,null,null,null,"SGC-UPEC"]
["Versión 1. 20 de abril de 2022"]
["1. Datos del módulo"]
["Periodo académico:",null,null,"julio noviembre 2024"]
["Programa",null,null,"Maestria en Estadística Aplicada",null,null,null,null,null,null,null,null,null,"Cohorte",null,"Unidad de organización "]
["Nivel:",null,null,"Primero ",null,null,null,null,null,null,null,null,null,"Primera ",null,"Unidad de investigación"]
["Cohorte:",null,null,"Quinta",null,null,null,null,null,null,null,null,null,"Segunda "]
["Paralelo",null,null,"\"A\"",null,null,null,null,null,null,null,null,null,"Tercera "]
["Unidad de Orgnización curricular:",null,null,"Unidad de investigación",null,null,null,null,null,null,null,null,null,"Cuarta "]
["Módulo:",null,null,"Metología de la investigación",null,null,null,null,null,null,null,"Maestrias ","Nivel ","Quinta"]
["Código:",null,null,"MEAUIMI4",null,null,null,null,null,null,null,"Columna1","Primero ","Sexta "]
["Tiempo de dedicación del módulo:",null,null,"5 semanas",null,null,null,null,null,null,null,"Maestria En  Desarrollo Local con mención en Planificación, Desarrollo y Ordenamiento Territorial"]
["2. Datos del docente",null,null,null,null,null,null,null,null,null,null,"Maestría en Educación, Tecnología e Innovación"]
["Nombres y apellidos del docente:",null,"Gabriela Elizabeth Revelo Salgado",null,null,null,null,null,null,null,null,null,"Segundo ","Septima"]
["Cédula:",null,401276894,null,null,null,null,null,null,null,null,"Maestria en Estadística Aplicada",null,"Octava "]
["Titulo de tercer nivel:",null,"Ingeniera Estadística","N° de registro SENESCYT",null,"1005-2018-1946406",null,null,null,null,null,null,"Paralelo","Novena "]
["Titulo de cuarto nivel:",null,"MASTER UNIVERSITARIO EN ANALISIS Y VISUALIZACION DE DATOS MASIVOS / ANALYTICS AND BIG DATA","N° de registro SENESCYT",null,7241165030,null,null,null,null,null,null,"\"A\"","Decima "]
["Correo electrónico:",null,"gabriela.revelo@upec.edu.ec","Número de cédula",null,401276894,null,null,null,null,null,null,"\"B\""]
["Código ORCID",null,"https://orcid.org/0000-0001-5238-223X"]
["Contacto:",null,987444079]
["Institución de procedencia:",null,"Universidad Politécnica Estatal del Carchi"]
["Lugar de residencia:",null,"Tulcán"]
["Logros académicos y profesionales:",null,"Co- creadora de la guía de datos abiertos\nCreadora Modelo SIR Carchi\nBeca por excelencia académica - Universidad Central del Ecuador"]
["3. Componente de organización de los aprendizajes"]
["Docente autor",null,null,null,"APRENDIZAJE ASISTIDO POR EL PROFESOR","APRENDIZAJE PRÁCTICO EXPERIMENTAL","Sumatoria horas clase según ACD + APE","Estimado o estimada docente, salvo su mejor criterio usted  puede conservar la distribución de horas planteada en esta matriz,  recuerde que la información esta vinculada con las siguientes páginas."]
["Folio","Fecha","Horarios","Horas clase según horario","ACD","APE"]
[1,"2024-09-30",null,null,null,null,{"$f":"SUM(E32:F32)","v":0}]
[2,{"$f":"B32+2","v":"2024-10-02"},null,null,null,null,{"$f":"SUM(E33:F33)","v":0}]
[3,{"$f":"B33+2","v":"2024-10-04"},"18h00-22h00",null,4,null,4]
[4,"Según la necesidad del docente","Horarios según la necesidad del docente",null,null,null,0]
[null,null,null,null,{"$f":"SUM(E32:E34)","v":4},{"$f":"SUM(F32:F35)","v":0}]
[5,{"$f":"B34+3","v":"2024-10-07"},"18h00-22h00",4,4,null,{"$f":"E37+F37","v":4}]
[6,{"$f":"B37+2","v":"2024-10-09"},"18h00-22h00",4,4,null,{"$f":"SUM(E38:F38)","v":4}]
[7,{"$f":"B38+2","v":"2024-10-11"},"18h00-22h00",4,4,null,{"$f":"SUM(E39:F39)","v":4}]
[8,"Según la necesidad del docente","Horarios según la necesidad del docente",3,null,3,3]
[null,null,null,null,{"$f":"SUM(E37:E39)","v":12},{"$f":"F40","v":3}]
[9,{"$f":"B39+3","v":"2024-10-14"},"18h00-22h00",4,4,null,{"$f":"SUM(E42:F42)","v":4}]
[10,{"$f":"B42+2","v":"2024-10-16"},"18h00-22h00",4,4,null,{"$f":"SUM(E43:F43)","v":4}]
[11,{"$f":"B43+2","v":"2024-10-18"},"18h00-22h00",4,4,null,{"$f":"SUM(E44:F44)","v":4}]
[12,"Según la necesidad del docente","Horarios según la necesidad del docente",3,null,3,3]
[null,null,null,null,{"$f":"SUM(E42:E44)","v":12},{"$f":"F45","v":3}]
[13,{"$f":"B44+3","v":"2024-10-21"},"18h00-22h00",4,4,null,{"$f":"SUM(E47:F47)","v":4}]
[14,{"$f":"B47+2","v":"2024-10-23"},"18h00-22h00",4,4,null,{"$f":"SUM(E48:F48)","v":4}]
[15,{"$f":"B48+2","v":"2024-10-25"},"18h00-22h00",4,4,null,{"$f":"SUM(E49:F49)","v":4}]
[16,"Según la necesidad del docente","Horarios según la necesidad del docente",3,null,3,3]
[null,null,null,null,{"$f":"SUM(E47:E49)","v":12},{"$f":"F50","v":3}]
[17,{"$f":"B49+3","v":"2024-10-28"},"18h00-22h00",4,4,null,{"$f":"E52","v":4}]
[18,{"$f":"B52+2","v":"2024-10-30"},"18h00-22h00",4,4,null,{"$f":"E53","v":4}]
[19,{"$f":"B53+2","v":"2024-11-01"},null,null,null,null,0]
[20,"Según la necesidad del docente","Horarios según la necesidad del docente",3,null,3,{"$f":"F55","v":3}]
[null,null,null,null,{"$f":"+E52+E53","v":8},{"$f":"SUM(F48:F50)","v":3}]
["Total horas a ser canceladas",null,null,null,{"$f":"E56+E46+E41+E36+E51","v":48},{"$f":"F36+F40+F45+F50+F56","v":12},{"$f":"SUM(G32:G55)","v":60}]
["Horas de los aprendizajes aprobadas por el CES",null,null,null,48,12,{"$f":"SUM(E58:F58)","v":60}]
["4. METODOLOGÍA",null,null,null,null,null,null,"Estimado o estimada docente es importante que usted elija las actividades de apendizaje que va a utilizar en el desarrollo del módulo."]
["Aprendizaje en Contacto con el Docente (ACD) ",null,"Aprendizaje Práctico-Experimental (APE)",null,"Aprendizaje Autónomo (AA)",null,null,null,null,null,null,null,null,null,null,null,null,null,null,null,null,null,null,null,null,null,null,null,null,null,null,null,null,null,"Estimado o estimada docente considere:"]
["Exposición oral (clase magistral)","X","Aplicación de contenidos conceptuales","X","Lectura crítica ",null,"X",null,null,null,null,null,null,null,null,null,null,null,null,null,null,null,null,null,null,null,null,null,null,null,null,null,null,null,"Aprendizaje en contacto con el docente: Es el conjunto de actividades individuales o grupales desarrolladas con intervención y supervisión directa del docente (de forma presencial o virtual, sincrónica o asincrónica)."]
["Conferencias/Seminarios",null,"Aplicación de procedimientos","X","Investigación documental",null,"X"]
["Talleres ","X","Resolución de problemas prácticos","X","Escritura académica",null,"X",null,null,null,null,null,null,null,null,null,null,null,null,null,null,null,null,null,null,null,null,null,null,null,null,null,null,null,"Aprendizaje práctico-experimental: Es el conjunto de actividades (individuales o grupales) de aplicación de contenidos conceptuales, procedimentales, técnicos, entre otros, a la resolución de problemas prácticos, comprobación, experimentación, contrastación, replicación y demás, que pueden requerir uso de infraestructura (física o virtual), equipos, instrumentos, y demás material, que serán facilitados por las Institución."]
["Proyecto en aula","X","Comprobación",null,"Escritura científica",null,"X"]
["Foros/Debates ","X","Experimentación ",null,"Elaboración de informes",null,"X"]
["Exposición audiovisual ","X","Contrastación","X","Elaboración de portafolios "]
["Lecturas dentro de clase",null,"Replicación de casos o métodos","X","Elaboración de proyectos",null,"X",null,null,null,null,null,null,null,null,null,null,null,null,null,null,null,null,null,null,null,null,null,null,null,null,null,null,null,"Aprendizaje autónomo: Es el conjunto de actividades de aprendizaje individuales o grupales desarrolladas de forma independiente por el estudiante sin contacto con el personal académico o el personal de apoyo académico. Las actividades planificadas y/o guiadas por el docente se desarrolla en función de su capacidad de iniciativa y de planificación; de manejo crítico de fuentes y contenidos de información; planteamiento y resolución de problemas; la motivación y la curiosidad para conocer; la transferencia y contextualización de conocimientos; la reflexión crítica y autoevaluación del propio trabajo, entre las principales. Para su desarrollo, deberán planificarse y evaluarse actividades específicas."]
["Ejercicios dentro de clase","X","Estudio de casos","X","Elaboración de planes"]
[null,null,null,null,"Elaboración de presentaciones"]
["Otros (especifique)",null,"Otros (especifique)",null,"Otros (especifique)"]
["5. EVALUACIÓN"]
["Documento: Problema  y Fundamentación teórica",null,0.25,"Gestión de Aprendizaje 1"]
["Documento: Metodología",null,0.25,"Gestión de Aprendizaje 2"]
["Exposición",null,0.25,"Gestión de Aprendizaje 3"]
["Documento final: perfil de TDT",null,0.25,"Gestión de Aprendizaje 4"]
["6. RECURSOS"]
["Recursos físicos",null,"No aplica"]
["Recursos tecnológicos",null," Aula virtual, Tablet, diapositivas, libros y normas en formato electrónico."]
["7. REVISIÓN Y APROBACIÓN "]
[null,null,"Nombres y apellidos",null,"Fecha","Firma"]
["Elaborado - Docente Autor:",null,"MSc. Gabriela Elizabeth Revelo Salgado",null,"2024-09-27"]
["Colaborador - Docente Tutor 1:",null,"MSc. Andrea Freire Pesántez",null,"2024-09-27"]
["Aprobado - Subdirector académico de Posgrado",null,"PhD.Jesús Ramón Aranguren Carrera",null,"2024-09-27"]

{"sheet":"Contenidos mínimos","index":2,"n_rows":28,"n_cols":6,"rows_kept":28,"cut":false,"hidden":false,"merged":[[27,0,27,2],[26,0,26,2],[28,0,28,2],[9,1,9,2],[7,1,7,2],[8,1,8,2],[11,1,11,2],[12,1,12,2],[15,1,15,2],[16,1,16,2],[17,1,17,2],[18,1,18,2],[19,1,19,2],[20,1,20,2],[23,1,23,2],[24,1,24,2],[25,0,25,2],[0,0,5,0],[0,2,4,2],[10,1,10,2],[21,1,21,2],[22,1,22,2],[13,1,13,2],[14,1,14,2],[6,0,6,2]]}
[null,"UNIVERSIDAD POLITÉCNICA ESTATAL DEL CARCHI"]
[null,"CENTRO DE POSTGRADO"]
[null,"MODALIDAD EN LINEA"]
[null,"PLANIFICACIÓN MICRO CURRICULAR"]
[null,"SÍLABO"]
[null,"CONTENIDOS MÍNIMOS","SGC-UPEC"]
["Versión 1. 20 de abril de 2022",null,null,null,null,"Educación, Tecnología e Innovación"]
["Maestría:","Estadística Aplicada",null,null,null,"Desarrollo Local con mención en Planificación, Desarrollo y Ordenamiento Territorial"]
["Módulo:","Metodología de la Investigación",null,null,null,"Estadística Aplicada"]
["Resultado de aprendizaje del módulo","• Aplica un orden lógico en el desarrollo de un trabajo de investigación.\n• Gestiona información científica.\n• Identifica los principales elementos para la presentación de un artículo en una revista científica.\n• Realiza el perfil para su Trabajo de Titulación."]
["UNIDAD 1","Normativa general de los estudios de postgrado para las Universidades e Institutos debidamente autorizados por el Consejo de Educación Superior (CES)"]
[null,"Pasos para la elaboración de un proyecto de investigación (Método científico)"]
[null,"Reglas para referenciar la literatura consultada (APA)"]
["UNIDAD 2","Procedimiento General para la presentación y defensa del trabajo de titulación"]
[null,"Principales elementos para presentación de un artículo en una revista científica"]
["UNIDAD 3","Análisis crítico de algunos trabajos de investigación y/o artículos científicos publicados"]
["UNIDAD 4","Estructura del Perfil del Trabajo de Titulación"]
[]
[]
[]
[]
[]
[]
[]
[]
["Bibliografía básica:"]
[]
["Bibliografía complementaria:"]

{"sheet":"Semana 1","index":3,"n_rows":43,"n_cols":19,"rows_kept":43,"cut":false,"hidden":false,"merged":[[42,0,42,4],[33,6,33,8],[34,6,34,8],[35,6,35,8],[36,6,36,8],[37,6,37,8],[38,6,38,8],[12,0,16,0],[32,6,32,8],[20,0,23,0],[24,0,24,4],[25,2,25,3],[25,6,25,8],[26,0,41,0],[26,1,41,1],[26,4,27,4],[31,6,31,8],[39,2,39,11],[18,11,19,11],[17,0,17,4],[18,0,19,0],[18,1,19,1],[18,2,19,2],[18,3,19,3],[18,4,19,4],[18,5,19,5],[18,6,18,7],[18,8,19,8],[18,9,19,9],[18,10,19,10],[5,0,5,11],[6,1,6,11],[7,1,7,11],[8,1,8,11],[10,0,11,0],[10,1,11,1],[10,2,11,2],[10,3,11,3],[10,4,11,4],[10,5,11,5],[10,6,10,7],[10,8,11,8],[10,9,11,9],[10,10,11,10],[10,11,11,11],[0,0,4,1],[0,2,0,10],[0,11,3,11],[1,2,1,10],[2,2,2,10],[3,2,3,10],[4,2,4,10],[29,2,30,2],[26,6,27,8],[29,5,30,5],[29,6,30,8],[26,5,27,5],[29,4,30,4]]}
[null,null,"UNIVERSIDAD POLITÉCNICA ESTATAL DEL CARCHI"]
[null,null,"CENTRO DE POSTGRADO",null,null,null,null,null,null,null,null,null,null,null,"Seleccione"]
[null,null,"MODALIDAD EN LINEA",null,null,null,null,null,null,null,null,null,null,null,"Desarrollo Local con Mención en Planificación, Desarrollo y Ordenamiento Territorial"]
[null,null,"PLANIFICACIÓN MICRO CURRICULAR",null,null,null,null,null,null,null,null,null,null,null,"Educación, Tecnología e Innovación"]
[null,null,"SÍLABO",null,null,null,null,null,null,null,null,"SGC-UPEC",null,null,"Estadística Aplicada"]
["Versión 01. 20 de abril de 2022"]
["Maestría:","Estadística Aplicada"]
["Módulo:",{"$f":"'Contenidos mínimos'!B9","v":"Metodología de la Investigación"}]
["Semana:","Uno"]
[]
["Aprendizaje","Unidad","Folio","Contenido","Actividad de aprendizaje","Tiempo Horas","Encuentro",null,"Producto de la actividad","Fecha","Puntaje","Observación"]
[null,null,null,null,null,null,"Sincrónica","Asincrónica",null,null,null,null,null,null,"Aprendizaje en Contacto con el Docente (ACD) ","Aprendizaje Práctico-Experimental (APE)","Aprendizaje Autónomo (AA)",null,"Estudio de caso"]
["Aprendizaje en Contacto con el docente",1,"Folio 1","Búsqueda en Bases de Datos Bibliográficas\n•\t¿Que son las bases de datos bibliográficas?\n•\tMejores bases de datos bibliográfica\n•\tComo acceder y buscar información en bases de datos bibliográfica\n•\tFiltros para gestionar los resultados\n•\tTipos de documentos bibliográficos\n•\tCaso práctico - Ejemplo aplicado",null,"04:00:00","X",null,null,{"$f":"'Información General'!B34","v":"2024-10-04"},null,null,null,null,"Exposición oral (clase magistral)","Aplicación de contenidos conceptuales","Lectura crítica ",null,"Mapa Mental"]
[null,null,"Folio 2","Normas APA 7ª edición\n•\t¿Qué son normas APA?\n•\tFormato APA para la presentación de trabajos escritos\n•\tAbreviaturas para el Estilo APA\n•\tDiferencia entre cita y referencia\n•\tCita textual menos de 40 palabras \n•\tCitas textuales más de 40 palabras\n•\tCita parafraseada \n•\tFormato de las citas\n•\tCitas del mismo autor, en el mismo año \n•\tCita de segunda mano o cita de cita\n•\tGestores Bibliográficos: Word y Mendeley\n•\tCaso práctico - Ejemplo aplicado",null,"04:00:00","X",null,null,{"$f":"'Información General'!B37","v":"2024-10-07"},null,null,null,null,"Conferencias/Seminarios","Aplicación de procedimientos","Investigación documental",null,"Exposición Digital"]
[null,null,"Folio 3","Estructura del perfil de trabajo de titulación \n•\tProblema\n•\tFundamentación Teórica",null,"04:00:00","X",null,null,{"$f":"'Información General'!B38","v":"2024-10-09"},null,null,null,null,"Talleres ","Resolución de problemas prácticos","Escritura académica",null,"Entrevista"]
[null,null,null,null,null,null,null,null,null,null,null,null,null,null,"Foros/Debates ","Experimentación ","Elaboración de informes",null,"Foros académicos"]
[null,null,"Chat 1:",null,null,"01:00:00",null,null,null,null,null,null,null,null,"Exposición audiovisual ","Contrastación","Elaboración de portafolios ",null,"Chat académico"]
["Total de horas",null,null,null,null,{"$f":"SUM(F13:F16)","v":"12:00:00"},null,null,{"$f":"'Información General'!E36","v":4},"CES",{"$f":"AVERAGE(K13:K17)","v":{"$error":"#DIV/0!"}},null,null,null,"Lecturas dentro de clase","Replicación de casos o métodos","Elaboración de proyectos",null,"Wiki académico"]
["Aprendizaje","Unidad","Folio","Contenido","Actividad de aprendizaje","Tiempo Horas","Encuentro",null,"Producto de la actividad","Fecha","Puntaje","Observación",null,null,"Ejercicios dentro de clase","Estudio de casos","Elaboración de planes",null,"Portafolio"]
[null,null,null,null,null,null,"Sincrónica","Asincrónica",null,null,null,null,null,null,"Mapa Mental","Mapa Mental","Elaboración de presentaciones",null,"M-Learning"]
["Aprendizaje Práctico Experimental",null,"Folio 4","Revisiones bibliográficas mediante el aplicativo VOSviewer - Visualizing scientific landscapes",null,"03:00:00",null,null,null,null,10,null,null,null,"Entrevista","Exposición Digital","Estudio de caso",null,"E-Training"]
[null,null,null,null,null,null,null,null,null,null,null,null,null,null,"Chat académico","Entrevista","Mapa Mental",null,"Aprendizaje basado en problemas"]
[null,null,null,null,null,null,null,null,null,null,null,null,null,null,"Wiki académico","Foros académicos","Exposición Digital",null,"Aprendizaje basado en proyectos"]
[null,null,null,null,null,null,null,null,null,null,null,null,null,null,"Portafolio","Chat académico","Entrevista",null,"Aprendizaje cooperativo"]
["Total de horas",null,null,null,null,{"$f":"SUM(F21:F24)","v":"03:00:00"},null,null,{"$f":"'Información General'!F36","v":0},"CES",{"$f":"AVERAGE(K21:K24)","v":10},null,null,null,"M-Learning","Wiki académico","Foros académicos",null,"Proyectos compartidos"]
["Aprendizaje","Unidad","Trabajo autónomo de los contenidos de la semana",null,"Actividad de aprendizaje","Tiempo Horas","Producto de la actividad",null,null,"Fecha","Puntaje","Observación",null,null,"E-Training","Portafolio","Chat académico",null,"Glosarios colaborativos"]
["Aprendizaje Autónomo",1,"Video 1:","Conociendo las Normas APA 7ma edición","Aprendizaje basado en proyectos","11:00:00","En este video usted podrá aprender sobre: escritura académica, bibliografía, referencias bibliográficas, citas bibliográficas, cita textual, paráfrasis, recursos para evitar el plagio. ",null,null,null,null,null,null,null,"Aprendizaje basado en problemas","M-Learning","Wiki académico",null,"Juegos de roles"]
[null,null,"Enlace/URL: ","https://www.youtube.com/watch?v=iVy-udqr-SA",null,null,null,null,null,null,null,null,null,null,"Aprendizaje basado en proyectos","E-Training","Rúbricas",null,"Crédito por uso de palabras"]
[null,null,null,"<iframe width=\"560\" height=\"315\" src=\"https://www.youtube.com/embed/iVy-udqr-SA\" title=\"YouTube video player\" frameborder=\"0\" allow=\"accelerometer; autoplay; clipboard-write; encrypted-media; gyroscope; picture-in-picture\" allowfullscreen></iframe>"]
[null,null,"Lectura ce artículos científicos","https://dialnet.unirioja.es/servlet/articulo?codigo=3798214 ","Lectura crítica ","04:00:00","En este artículo usted deberá identificar los fundamentos y epistemología de la investigación",null,null,null,null,null,null,null,"Proyectos compartidos","Juegos de roles","E-Training",null,"Resolución de ejercicios en grupos"]
[null,null,null,"Evolución de las relaciones entre la epistemología y la metodología de la investigación",null,null,null,null,null,null,null,null,null,null,"Glosarios colaborativos","Crédito por uso de palabras","Aprendizaje basado en problemas",null,"Evaluación en un entorno en línea de Aprendizaje"]
[null,null,"Actividad:","Elaborar una práctica en el Software VOSviewer con relevancia en su tema de investigación","Elaboración de informes","06:00:00",null,"Fecha de entrega de la tarea","Fecha de entrega de la tarea",null,10,"El/La alumno/a deberá adjuntar en un archivo Pdf. Los tres diagramas que provienen del aplicativo con su respectiva explicación adjunta",null,null,"Juegos de roles","Trabajos de investigación con retroalimentación","Aprendizaje basado en proyectos",null,"Foros "]
[null,null,null,null,null,null,null,null,null,null,null,null,null,null,"Crédito por uso de palabras","Resolución de ejercicios en grupos","Aprendizaje cooperativo",null,"E-portfolios"]
[null,null,null,null,null,null,null,null,null,null,null,null,null,null,"Trabajos de investigación con retroalimentación","E-portfolios","Proyectos compartidos",null,"Rúbricas"]
[null,null,null,null,null,null,null,null,null,null,null,null,null,null,"Resolución de ejercicios en grupos","Rúbricas","Glosarios colaborativos"]
[null,null,null,null,null,null,null,null,null,null,null,null,null,null,"E-portfolios","Otros (especifique)","Juegos de roles"]
[null,null,null,null,null,null,null,null,null,null,null,null,null,null,"Rúbricas",null,"Crédito por uso de palabras"]
[null,null,null,null,null,null,null,null,null,null,null,null,null,null,"Otros (especifique)",null,"Resolución de ejercicios en grupos"]
[null,null,null,null,null,null,null,null,null,null,null,null,null,null,null,null,"Otros (especifique)"]
[null,null,"Material Complementario:"]
[null,null,"Lectura:"]
[null,null,"Recuperado de:"]
["Total de horas",null,null,null,null,{"$f":"SUM(F27:F39)","v":"21:00:00"},21,"CES"]

{"sheet":"Semana 2","index":4,"n_rows":42,"n_cols":19,"rows_kept":42,"cut":false,"hidden":false,"merged":[[41,0,41,4],[32,6,32,8],[33,6,33,8],[34,6,34,8],[35,6,35,8],[36,6,36,8],[37,6,37,8],[12,0,16,0],[31,6,31,8],[20,0,23,0],[24,0,24,4],[25,2,25,3],[25,6,25,8],[26,0,40,0],[26,1,40,1],[26,4,27,4],[30,6,30,8],[38,2,38,11],[18,11,19,11],[17,0,17,4],[18,0,19,0],[18,1,19,1],[18,2,19,2],[18,3,19,3],[18,4,19,4],[18,5,19,5],[18,6,18,7],[18,8,19,8],[18,9,19,9],[18,10,19,10],[5,0,5,11],[6,1,6,11],[7,1,7,11],[8,1,8,11],[10,0,11,0],[10,1,11,1],[10,2,11,2],[10,3,11,3],[10,4,11,4],[10,5,11,5],[10,6,10,7],[10,8,11,8],[10,9,11,9],[10,10,11,10],[10,11,11,11],[0,0,4,1],[0,2,0,10],[0,11,3,11],[1,2,1,10],[2,2,2,10],[3,2,3,10],[4,2,4,10],[26,5,27,5],[26,6,27,8],[28,2,29,2],[28,6,29,8],[28,5,29,5],[28,4,29,4]]}
[null,null,"UNIVERSIDAD POLITÉCNICA ESTATAL DEL CARCHI"]
[null,null,"CENTRO DE POSTGRADO",null,null,null,null,null,null,null,null,null,null,null,"Seleccione"]
[null,null,"MODALIDAD EN LINEA",null,null,null,null,null,null,null,null,null,null,null,"Desarrollo Local con Mención en Planificación, Desarrollo y Ordenamiento Territorial"]
[null,null,"PLANIFICACIÓN MICRO CURRICULAR",null,null,null,null,null,null,null,null,null,null,null,"Educación, Tecnología e Innovación"]
[null,null,"SÍLABO",null,null,null,null,null,null,null,null,"SGC-UPEC",null,null,"Estadística Aplicada"]
["Versión 01. 20 de abril de 2022"]
["Maestría:","Estadística Aplicada"]
["Módulo:",{"$f":"'Contenidos mínimos'!B9","v":"Metodología de la Investigación"}]
["Semana:","Dos"]
[]
["Aprendizaje","Unidad","Folio","Contenido","Actividad de aprendizaje","Tiempo Horas","Encuentro",null,"Producto de la actividad","Fecha","Puntaje","Observación"]
[null,null,null,null,null,null,"Sincrónica","Asincrónica",null,null,null,null,null,null,"Aprendizaje en Contacto con el Docente (ACD) ","Aprendizaje Práctico-Experimental (APE)","Aprendizaje Autónomo (AA)",null,"Estudio de caso"]
["Aprendizaje en Contacto con el docente",1,"Folio 5","Estructura del perfil de trabajo de titulación \n•\tMetodología\n•\tMarco administrativo",null,"04:00:00","X",null,null,{"$f":"'Información General'!B39","v":"2024-10-11"},null,null,null,null,"Exposición oral (clase magistral)","Aplicación de contenidos conceptuales","Lectura crítica ",null,"Mapa Mental"]
[null,null,"Folio 6","El método científico\n•\tTema de la investigación \n•\tPlanteamiento del problema\n•\tObjetivos",null,"04:00:00","X",null,null,{"$f":"'Información General'!B42","v":"2024-10-14"},null,null,null,null,"Conferencias/Seminarios","Aplicación de procedimientos","Investigación documental",null,"Exposición Digital"]
[null,null,"Folio 7","El método científico\n\n•\tJustificación \n•\tMarco teórico\n•\tHipótesis \n•\tVariables",null,"04:00:00","X",null,null,{"$f":"'Información General'!B43","v":"2024-10-16"},null,null,null,null,"Talleres ","Resolución de problemas prácticos","Escritura académica",null,"Entrevista"]
[null,null,null,null,null,null,null,null,null,null,null,null,null,null,"Foros/Debates ","Experimentación ","Elaboración de informes",null,"Foros académicos"]
[null,null,"Chat 1:",null,null,"01:00:00",null,null,null,null,null,null,null,null,"Exposición audiovisual ","Contrastación","Elaboración de portafolios ",null,"Chat académico"]
["Total de horas",null,null,null,null,{"$f":"SUM(F13:F16)","v":"12:00:00"},null,null,{"$f":"'Información General'!E36","v":4},"CES",{"$f":"AVERAGE(K13:K17)","v":{"$error":"#DIV/0!"}},null,null,null,"Lecturas dentro de clase","Replicación de casos o métodos","Elaboración de proyectos",null,"Wiki académico"]
["Aprendizaje","Unidad","Folio","Contenido","Actividad de aprendizaje","Tiempo Horas","Encuentro",null,"Producto de la actividad","Fecha","Puntaje","Observación",null,null,"Ejercicios dentro de clase","Estudio de casos","Elaboración de planes",null,"Portafolio"]
[null,null,null,null,null,null,"Sincrónica","Asincrónica",null,null,null,null,null,null,"Mapa Mental","Mapa Mental","Elaboración de presentaciones",null,"M-Learning"]
["Aprendizaje Práctico Experimental",null,"Folio 8","Diseño de Árbol de ciencia con SCOPUS",null,"03:00:00",null,null,null,null,10,null,null,null,"Entrevista","Exposición Digital","Estudio de caso",null,"E-Training"]
[null,null,null,null,null,null,null,null,null,null,null,null,null,null,"Chat académico","Entrevista","Mapa Mental",null,"Aprendizaje basado en problemas"]
[null,null,null,null,null,null,null,null,null,null,null,null,null,null,"Wiki académico","Foros académicos","Exposición Digital",null,"Aprendizaje basado en proyectos"]
[null,null,null,null,null,null,null,null,null,null,null,null,null,null,"Portafolio","Chat académico","Entrevista",null,"Aprendizaje cooperativo"]
["Total de horas",null,null,null,null,{"$f":"SUM(F21:F24)","v":"03:00:00"},null,null,{"$f":"'Información General'!F36","v":0},"CES",{"$f":"AVERAGE(K21:K24)","v":10},null,null,null,"M-Learning","Wiki académico","Foros académicos",null,"Proyectos compartidos"]
["Aprendizaje","Unidad","Trabajo autónomo de los contenidos de la semana",null,"Actividad de aprendizaje","Tiempo Horas","Producto de la actividad",null,null,"Fecha","Puntaje","Observación",null,null,"E-Training","Portafolio","Chat académico",null,"Glosarios colaborativos"]
["Aprendizaje Autónomo",1,"Video 1:","Videos explicativos para elaborar Árboles de ciencia","Aprendizaje basado en proyectos","12:00:00","En este video usted podrá comprender las formas en como se realiza un arbol de ciencia, con la finalidad de que dicha estructura contribuya a la elaboración de su producto final",null,null,null,null,null,null,null,"Aprendizaje basado en problemas","M-Learning","Wiki académico",null,"Juegos de roles"]
[null,null,"Enlace/URL: ","En TOS\n\n\thttps://www.facebook.com/treeofscience1/videos/ejemplo-de-b%C3%BAsqueda-tree-of-science-tos-difusi%C3%B3n-de-productos/1565693967090871/\n\n\thttps://www.facebook.com/treeofscience1/videos/cargar-archivo-tree-of-science/1484138021913133/\n\t\n\nEn R studio o Cloud\n\n\thttps://www.youtube.com/watch?v=jtKSifvNvTM\n\t\t",null,null,null,null,null,null,null,null,null,null,"Aprendizaje basado en proyectos","E-Training","Rúbricas",null,"Crédito por uso de palabras"]
[null,null,"Lectura ce artículos científicos","https://www.scielo.cl/scielo.php?pid=S0717-95022013000400056&script=sci_arttext","Lectura crítica ","05:00:00","En este artículo usted deberá identificar como la  investigación tiene como principales objetivos la generación de conocimiento y la solución de problemas prácticos ",null,null,null,null,null,null,null,"Proyectos compartidos","Juegos de roles","E-Training",null,"Resolución de ejercicios en grupos"]
[null,null,null,"Por qué Investigar y Cómo Conducir una Investigación",null,null,null,null,null,null,null,null,null,null,"Glosarios colaborativos","Crédito por uso de palabras","Aprendizaje basado en problemas",null,"Evaluación en un entorno en línea de Aprendizaje"]
[null,null,"Actividad:","Elaboración del árbol de ciencia de su investigación y redacte dos párrafos incluyendo las  perspectivas de la raiz, tronco y hojas","Elaboración de informes","04:00:00","Fecha de entrega de la tarea","Fecha de entrega de la tarea","Fecha de entrega de la tarea",null,10,"El/La alumno/a deberá adjuntar en un archivo Pdf. El árbol de ciencias que proviene del método usado, de los resultados del mismo se elaboran dos párrafos, se evalua el uso del material, la correcta redacción y citación",null,null,"Juegos de roles","Trabajos de investigación con retroalimentación","Aprendizaje basado en proyectos",null,"Foros "]
[null,null,null,null,null,null,null,null,null,null,null,null,null,null,"Crédito por uso de palabras","Resolución de ejercicios en grupos","Aprendizaje cooperativo",null,"E-portfolios"]
[null,null,null,null,null,null,null,null,null,null,null,null,null,null,"Trabajos de investigación con retroalimentación","E-portfolios","Proyectos compartidos",null,"Rúbricas"]
[null,null,null,null,null,null,null,null,null,null,null,null,null,null,"Resolución de ejercicios en grupos","Rúbricas","Glosarios colaborativos"]
[null,null,null,null,null,null,null,null,null,null,null,null,null,null,"E-portfolios","Otros (especifique)","Juegos de roles"]
[null,null,null,null,null,null,null,null,null,null,null,null,null,null,"Rúbricas",null,"Crédito por uso de palabras"]
[null,null,null,null,null,null,null,null,null,null,null,null,null,null,"Otros (especifique)",null,"Resolución de ejercicios en grupos"]
[null,null,null,null,null,null,null,null,null,null,null,null,null,null,null,null,"Otros (especifique)"]
[null,null,"Material Complementario:"]
[null,null,"Lectura:"]
[null,null,"Recuperado de:"]
["Total de horas",null,null,null,null,{"$f":"SUM(F27:F38)","v":"21:00:00"},21,"CES"]

{"sheet":"Semana 3","index":5,"n_rows":42,"n_cols":19,"rows_kept":42,"cut":false,"hidden":false,"merged":[[41,0,41,4],[32,6,32,8],[33,6,33,8],[34,6,34,8],[35,6,35,8],[36,6,36,8],[37,6,37,8],[12,0,16,0],[31,6,31,8],[20,0,23,0],[24,0,24,4],[25,2,25,3],[25,6,25,8],[26,0,40,0],[26,1,40,1],[26,4,27,4],[30,6,30,8],[38,2,38,11],[18,11,19,11],[17,0,17,4],[18,0,19,0],[18,1,19,1],[18,2,19,2],[18,3,19,3],[18,4,19,4],[18,5,19,5],[18,6,18,7],[18,8,19,8],[18,9,19,9],[18,10,19,10],[5,0,5,11],[6,1,6,11],[7,1,7,11],[8,1,8,11],[10,0,11,0],[10,1,11,1],[10,2,11,2],[10,3,11,3],[10,4,11,4],[10,5,11,5],[10,6,10,7],[10,8,11,8],[10,9,11,9],[10,10,11,10],[10,11,11,11],[0,0,4,1],[0,2,0,10],[0,11,3,11],[1,2,1,10],[2,2,2,10],[3,2,3,10],[4,2,4,10],[28,2,29,2],[26,5,27,5],[26,6,27,8],[28,6,29,8],[28,4,29,4],[28,5,29,5]]}
[null,null,"UNIVERSIDAD POLITÉCNICA ESTATAL DEL CARCHI"]
[null,null,"CENTRO DE POSTGRADO",null,null,null,null,null,null,null,null,null,null,null,"Seleccione"]
[null,null,"MODALIDAD EN LINEA",null,null,null,null,null,null,null,null,null,null,null,"Desarrollo Local con Mención en Planificación, Desarrollo y Ordenamiento Territorial"]
[null,null,"PLANIFICACIÓN MICRO CURRICULAR",null,null,null,null,null,null,null,null,null,null,null,"Educación, Tecnología e Innovación"]
[null,null,"SÍLABO",null,null,null,null,null,null,null,null,"SGC-UPEC",null,null,"Estadística Aplicada"]
["Versión 01. 20 de abril de 2022"]
["Maestría:","Estadística Aplicada"]
["Módulo:",{"$f":"'Contenidos mínimos'!B9","v":"Metodología de la Investigación"}]
["Semana:","Tres"]
[]
["Aprendizaje","Unidad","Folio","Contenido","Actividad de aprendizaje","Tiempo Horas","Encuentro",null,"Producto de la actividad","Fecha","Puntaje","Observación"]
[null,null,null,null,null,null,"Sincrónica","Asincrónica",null,null,null,null,null,null,"Aprendizaje en Contacto con el Docente (ACD) ","Aprendizaje Práctico-Experimental (APE)","Aprendizaje Autónomo (AA)",null,"Estudio de caso"]
["Aprendizaje en Contacto con el docente",1,"Folio 9","El método científico\n\n•\tTipos de investigación\n•\tPoblación y muestra\n•\tRecolección de datos",null,"04:00:00","X",null,null,{"$f":"'Información General'!B44","v":"2024-10-18"},null,null,null,null,"Exposición oral (clase magistral)","Aplicación de contenidos conceptuales","Lectura crítica ",null,"Mapa Mental"]
[null,null,"Folio 10","El método científico\n\n•\tResultados y discusión\n•\tConclusiones y recomendaciones\n•\tResumen\n•\tReferencias",null,"04:00:00","X",null,null,{"$f":"'Información General'!B47","v":"2024-10-21"},null,null,null,null,"Conferencias/Seminarios","Aplicación de procedimientos","Investigación documental",null,"Exposición Digital"]
[null,null,"Folio 11","Artículos científicos\n•\tTipos de artículos\n•\tSelección de la revista\n•\tIndexaciones",null,"04:00:00","X",null,null,{"$f":"'Información General'!B48","v":"2024-10-23"},null,null,null,null,"Talleres ","Resolución de problemas prácticos","Escritura académica",null,"Entrevista"]
[null,null,null,null,null,null,null,null,null,null,null,null,null,null,"Foros/Debates ","Experimentación ","Elaboración de informes",null,"Foros académicos"]
[null,null,"Chat 1:",null,null,"01:00:00",null,null,null,null,null,null,null,null,"Exposición audiovisual ","Contrastación","Elaboración de portafolios ",null,"Chat académico"]
["Total de horas",null,null,null,null,{"$f":"SUM(F13:F16)","v":"12:00:00"},null,null,{"$f":"'Información General'!E36","v":4},"CES",{"$f":"AVERAGE(K13:K17)","v":{"$error":"#DIV/0!"}},null,null,null,"Lecturas dentro de clase","Replicación de casos o métodos","Elaboración de proyectos",null,"Wiki académico"]
["Aprendizaje","Unidad","Folio","Contenido","Actividad de aprendizaje","Tiempo Horas","Encuentro",null,"Producto de la actividad","Fecha","Puntaje","Observación",null,null,"Ejercicios dentro de clase","Estudio de casos","Elaboración de planes",null,"Portafolio"]
[null,null,null,null,null,null,"Sincrónica","Asincrónica",null,null,null,null,null,null,"Mapa Mental","Mapa Mental","Elaboración de presentaciones",null,"M-Learning"]
["Aprendizaje Práctico Experimental",null,"Folio 12","Matríz de operacionalización de variables",null,"03:00:00",null,null,null,null,10,null,null,null,"Entrevista","Exposición Digital","Estudio de caso",null,"E-Training"]
[null,null,null,null,null,null,null,null,null,null,null,null,null,null,"Chat académico","Entrevista","Mapa Mental",null,"Aprendizaje basado en problemas"]
[null,null,null,null,null,null,null,null,null,null,null,null,null,null,"Wiki académico","Foros académicos","Exposición Digital",null,"Aprendizaje basado en proyectos"]
[null,null,null,null,null,null,null,null,null,null,null,null,null,null,"Portafolio","Chat académico","Entrevista",null,"Aprendizaje cooperativo"]
["Total de horas",null,null,null,null,{"$f":"SUM(F21:F24)","v":"03:00:00"},null,null,{"$f":"'Información General'!F36","v":0},"CES",{"$f":"AVERAGE(K21:K24)","v":10},null,null,null,"M-Learning","Wiki académico","Foros académicos",null,"Proyectos compartidos"]
["Aprendizaje","Unidad","Trabajo autónomo de los contenidos de la semana",null,"Actividad de aprendizaje","Tiempo Horas","Producto de la actividad",null,null,"Fecha","Puntaje","Observación",null,null,"E-Training","Portafolio","Chat académico",null,"Glosarios colaborativos"]
["Aprendizaje Autónomo",1,"Video 1:","Operacionalización de Variables","Aprendizaje basado en proyectos","12:00:00","En este video usted podrá presenciar un caso de estudio, en el cual, proceden a diseñar una matríz de operacionalización de variables",null,null,null,null,null,null,null,"Aprendizaje basado en problemas","M-Learning","Wiki académico",null,"Juegos de roles"]
[null,null,"Enlace/URL: ","https://www.youtube.com/watch?v=ckd8bayDMz0",null,null,null,null,null,null,null,null,null,null,"Aprendizaje basado en proyectos","E-Training","Rúbricas",null,"Crédito por uso de palabras"]
[null,null,"Lectura De artículos científicos","http://www.scielo.org.pe/pdf/rsqp/v73n3/a07v73n3.pdf","Lectura crítica ","05:00:00","En este artículo usted deberá identificar que son las variables y como  se relacionan",null,null,null,null,null,null,null,"Proyectos compartidos","Juegos de roles","E-Training",null,"Resolución de ejercicios en grupos"]
[null,null,null,"LAS VARIABLES EN EL MÉTODO CIENTÍFICO",null,null,null,null,null,null,null,null,null,null,"Glosarios colaborativos","Crédito por uso de palabras","Aprendizaje basado en problemas",null,"Evaluación en un entorno en línea de Aprendizaje"]
[null,null,"Actividad:","Elaborar la matríz de operacionalización de las variables en el contexto de su investigación","Elaboración de informes","04:00:00","Fecha de entrega de la tarea","Fecha de entrega de la tarea","Fecha de entrega de la tarea",null,10,"El/La alumno/a deberá adjuntar en un archivo .xlsx la matríz de operacionalización de variables, se evalúa la lógica proveniente de la asociación/selección de variables de estudio",null,null,"Juegos de roles","Trabajos de investigación con retroalimentación","Aprendizaje basado en proyectos",null,"Foros "]
[null,null,null,null,null,null,null,null,null,null,null,null,null,null,"Crédito por uso de palabras","Resolución de ejercicios en grupos","Aprendizaje cooperativo",null,"E-portfolios"]
[null,null,null,null,null,null,null,null,null,null,null,null,null,null,"Trabajos de investigación con retroalimentación","E-portfolios","Proyectos compartidos",null,"Rúbricas"]
[null,null,null,null,null,null,null,null,null,null,null,null,null,null,"Resolución de ejercicios en grupos","Rúbricas","Glosarios colaborativos"]
[null,null,null,null,null,null,null,null,null,null,null,null,null,null,"E-portfolios","Otros (especifique)","Juegos de roles"]
[null,null,null,null,null,null,null,null,null,null,null,null,null,null,"Rúbricas",null,"Crédito por uso de palabras"]
[null,null,null,null,null,null,null,null,null,null,null,null,null,null,"Otros (especifique)",null,"Resolución de ejercicios en grupos"]
[null,null,null,null,null,null,null,null,null,null,null,null,null,null,null,null,"Otros (especifique)"]
[null,null,"Material Complementario:"]
[null,null,"Lectura:"]
[null,null,"Recuperado de:"]
["Total de horas",null,null,null,null,{"$f":"SUM(F27:F38)","v":"21:00:00"},22,"CES"]

{"sheet":"Semana 4","index":6,"n_rows":41,"n_cols":19,"rows_kept":41,"cut":false,"hidden":false,"merged":[[40,0,40,4],[31,6,31,8],[32,6,32,8],[33,6,33,8],[34,6,34,8],[35,6,35,8],[36,6,36,8],[12,0,16,0],[30,6,30,8],[20,0,23,0],[24,0,24,4],[25,2,25,3],[25,6,25,8],[26,0,39,0],[26,1,39,1],[26,4,27,4],[37,2,37,11],[18,11,19,11],[17,0,17,4],[18,0,19,0],[18,1,19,1],[18,2,19,2],[18,3,19,3],[18,4,19,4],[18,5,19,5],[18,6,18,7],[18,8,19,8],[18,9,19,9],[18,10,19,10],[5,0,5,11],[6,1,6,11],[7,1,7,11],[8,1,8,11],[10,0,11,0],[10,1,11,1],[10,2,11,2],[10,3,11,3],[10,4,11,4],[10,5,11,5],[10,6,10,7],[10,8,11,8],[10,9,11,9],[10,10,11,10],[10,11,11,11],[0,0,4,1],[0,2,0,10],[0,11,3,11],[1,2,1,10],[2,2,2,10],[3,2,3,10],[4,2,4,10],[28,2,29,2],[26,5,27,5],[26,6,27,8],[28,4,29,4],[28,5,29,5],[28,6,29,8]]}
[null,null,"UNIVERSIDAD POLITÉCNICA ESTATAL DEL CARCHI"]
[null,null,"CENTRO DE POSTGRADO",null,null,null,null,null,null,null,null,null,null,null,"Seleccione"]
[null,null,"MODALIDAD EN LINEA",null,null,null,null,null,null,null,null,null,null,null,"Desarrollo Local con Mención en Planificación, Desarrollo y Ordenamiento Territorial"]
[null,null,"PLANIFICACIÓN MICRO CURRICULAR",null,null,null,null,null,null,null,null,null,null,null,"Educación, Tecnología e Innovación"]
[null,null,"SÍLABO",null,null,null,null,null,null,null,null,"SGC-UPEC",null,null,"Estadística Aplicada"]
["Versión 01. 20 de abril de 2022"]
["Maestría:","Estadística Aplicada"]
["Módulo:",{"$f":"'Contenidos mínimos'!B9","v":"Metodología de la Investigación"}]
["Semana:","Cuatro"]
[]
["Aprendizaje","Unidad","Folio","Contenido","Actividad de aprendizaje","Tiempo Horas","Encuentro",null,"Producto de la actividad","Fecha","Puntaje","Observación"]
[null,null,null,null,null,null,"Sincrónica","Asincrónica",null,null,null,null,null,null,"Aprendizaje en Contacto con el Docente (ACD) ","Aprendizaje Práctico-Experimental (APE)","Aprendizaje Autónomo (AA)",null,"Estudio de caso"]
["Aprendizaje en Contacto con el docente",1,"Folio 13","Estructura de un artículo científico\n•\tTitulo\n•\tAutores\n•\tResumen\n•\tPalabras clave\n•\tIntroducción\n•\tFundamentación teórica\n•\tMetodología\n•\tResultados\n•\tConclusiones\n•\tAgradecimientos\n•\tReferencias\n•\tAnexos",null,"04:00:00","X",null,null,{"$f":"'Información General'!B49","v":"2024-10-25"},null,null,null,null,"Exposición oral (clase magistral)","Aplicación de contenidos conceptuales","Lectura crítica ",null,"Mapa Mental"]
[null,null,"Folio 14","Estructura de presentación y defensa del trabajo de titulación \n• Lineamientos generales para la defensa de la tesis\nNúmero de diapositivas",null,"04:00:00","X",null,null,{"$f":"'Información General'!B52","v":"2024-10-28"},null,null,null,null,"Conferencias/Seminarios","Aplicación de procedimientos","Investigación documental",null,"Exposición Digital"]
[null,null,"Folio 15","Presentación y defensa del perfil del trabajo de titulación ",null,"04:00:00","X",null,null,{"$f":"'Información General'!B54","v":"2024-11-01"},null,null,null,null,"Talleres ","Resolución de problemas prácticos","Escritura académica",null,"Entrevista"]
[null,null,null,null,null,null,null,null,null,null,null,null,null,null,"Foros/Debates ","Experimentación ","Elaboración de informes",null,"Foros académicos"]
[null,null,"Chat 1:",null,"Exposición oral (clase magistral)","01:00:00",null,null,null,null,null,null,null,null,"Exposición audiovisual ","Contrastación","Elaboración de portafolios ",null,"Chat académico"]
["Total de horas",null,null,null,null,{"$f":"SUM(F13:F16)","v":"12:00:00"},null,null,{"$f":"'Información General'!E36","v":4},"CES",{"$f":"AVERAGE(K13:K17)","v":{"$error":"#DIV/0!"}},null,null,null,"Lecturas dentro de clase","Replicación de casos o métodos","Elaboración de proyectos",null,"Wiki académico"]
["Aprendizaje","Unidad","Folio","Contenido","Actividad de aprendizaje","Tiempo Horas","Encuentro",null,"Producto de la actividad","Fecha","Puntaje","Observación",null,null,"Ejercicios dentro de clase","Estudio de casos","Elaboración de planes",null,"Portafolio"]
[null,null,null,null,null,null,"Sincrónica","Asincrónica",null,null,null,null,null,null,"Mapa Mental","Mapa Mental","Elaboración de presentaciones",null,"M-Learning"]
["Aprendizaje Práctico Experimental",null,"Folio 16","Busqueda de revistas indexadas Latindex catálogo 2.0 y Scopus",null,"03:00:00",null,null,null,null,10,null,null,null,"Entrevista","Exposición Digital","Estudio de caso",null,"E-Training"]
[null,null,null,null,null,null,null,null,null,null,null,null,null,null,"Chat académico","Entrevista","Mapa Mental",null,"Aprendizaje basado en problemas"]
[null,null,null,null,null,null,null,null,null,null,null,null,null,null,"Wiki académico","Foros académicos","Exposición Digital",null,"Aprendizaje basado en proyectos"]
[null,null,null,null,null,null,null,null,null,null,null,null,null,null,"Portafolio","Chat académico","Entrevista",null,"Aprendizaje cooperativo"]
["Total de horas",null,null,null,null,{"$f":"SUM(F21:F24)","v":"03:00:00"},null,null,{"$f":"'Información General'!F36","v":0},"CES",{"$f":"AVERAGE(K21:K24)","v":10},null,null,null,"M-Learning","Wiki académico","Foros académicos",null,"Proyectos compartidos"]
["Aprendizaje","Unidad","Trabajo autónomo de los contenidos de la semana",null,"Actividad de aprendizaje","Tiempo Horas","Producto de la actividad",null,null,"Fecha","Puntaje","Observación",null,null,"E-Training","Portafolio","Chat académico",null,"Glosarios colaborativos"]
["Aprendizaje Autónomo",1,"Video 1:","Cómo exponer un tema sin complicarte la vida","Aprendizaje basado en problemas","12:00:00","En este video se brindarán recomendaciones de como el/la estudiante debe preparar su exposición/defensa del proyecto de investigación",null,null,null,null,null,null,null,"Aprendizaje basado en problemas","M-Learning","Wiki académico",null,"Juegos de roles"]
[null,null,"Enlace/URL: ","https://www.youtube.com/watch?v=8J1y1tATcrw",null,null,null,null,null,null,null,null,null,null,"Aprendizaje basado en proyectos","E-Training","Rúbricas",null,"Crédito por uso de palabras"]
[null,null,"Lectura ce artículos científicos","http://www.scielo.org.bo/pdf/rmcmlp/v15n1/v15n1_a10.pdf","Lectura crítica ","06:00:00","En este artículo se plasma la forma de como se desarrolla un artículo de revisión cientifica",null,null,null,null,null,null,null,"Proyectos compartidos","Juegos de roles","E-Training",null,"Resolución de ejercicios en grupos"]
[null,null,null,"CÓMO ESCRIBIR ARTÍCULOS DE REVISIÓN",null,null,null,null,null,null,null,null,null,null,"Glosarios colaborativos","Crédito por uso de palabras","Aprendizaje basado en problemas",null,"Evaluación en un entorno en línea de Aprendizaje"]
[null,null,"Actividad:","Matríz de recopilación de revistas cientificas indexadas","Elaboración de informes","03:00:00","Fecha de entrega de la tarea","Fecha de entrega de la tarea","Fecha de entrega de la tarea",null,10,"El/La alumno/a deberá adjuntar en un archivo .xlsx la matríz de recopilación de revistas indexadas",null,null,"Crédito por uso de palabras","Resolución de ejercicios en grupos","Aprendizaje cooperativo",null,"E-portfolios"]
[null,null,null,null,null,null,null,null,null,null,null,null,null,null,"Trabajos de investigación con retroalimentación","E-portfolios","Proyectos compartidos",null,"Rúbricas"]
[null,null,null,null,null,null,null,null,null,null,null,null,null,null,"Resolución de ejercicios en grupos","Rúbricas","Glosarios colaborativos"]
[null,null,null,null,null,null,null,null,null,null,null,null,null,null,"E-portfolios","Otros (especifique)","Juegos de roles"]
[null,null,null,null,null,null,null,null,null,null,null,null,null,null,"Rúbricas",null,"Crédito por uso de palabras"]
[null,null,null,null,null,null,null,null,null,null,null,null,null,null,"Otros (especifique)",null,"Resolución de ejercicios en grupos"]
[null,null,null,null,null,null,null,null,null,null,null,null,null,null,null,null,"Otros (especifique)"]
[null,null,"Material Complementario:"]
[null,null,"Lectura:"]
[null,null,"Recuperado de:"]
["Total de horas",null,null,null,null,{"$f":"SUM(F27:F37)","v":"21:00:00"},21,"CES"]

{"sheet":"Tabla de actualización","index":7,"n_rows":0,"n_cols":0,"rows_kept":0,"cut":false,"hidden":true,"merged":[]}